fUST/lending_fUST_20240820
["ID","MTS","AMOUNT","RATE_DAILY","PERIOD"]
[335347752,1724152237763,-300.0,7.876e-05,2]
[335347755,1724152237779,-22817.19471956,7.877e-05,2]
[335347758,1724152237793,-164.09768225,7.911e-05,2]
[335347760,1724152237807,-309.76695296,7.911e-05,2]
[335347762,1724152237820,-154.91452447,7.911e-05,2]
[335347765,1724152237835,-223.54518659,7.911e-05,2]
[335347767,1724152237848,-281.07945898,7.911e-05,2]
[335347770,1724152237861,-1123.9224255,7.943e-05,2]
[335347772,1724152237877,-534.68598613,7.954e-05,2]
[335347775,1724152237890,-216.60734018,7.954e-05,2]
[335347777,1724152237902,-268.8350099,8.28e-05,2]
[335347779,1724152237917,-420.0,8.664e-05,2]
[335347782,1724152237932,-420.0,8.664e-05,2]
[335347785,1724152237946,-422.17784127,9.524e-05,2]
[335347787,1724152237958,-587.0,9.53e-05,2]
[335347789,1724152237972,-587.0,9.53e-05,2]
[335347791,1724152237984,-413.61733345,0.0001,2]
[335347794,1724152237999,-823.0,0.00010483,2]
[335347796,1724152238010,-192.0,0.00010483,2]
[335347798,1724152238023,-55478.02051668,0.00010544,2]
[335347801,1724152238035,-276.47,0.00010959,2]
[335347803,1724152238048,-779.44,0.00010959,2]
[335347805,1724152238061,-649.54,0.00010959,2]
[335347808,1724152238073,-541.28,0.00010959,2]
[335347810,1724152238086,-451.07,0.00010959,2]
[335347812,1724152238098,-375.89,0.00010959,2]
[335347815,1724152238111,-313.24,0.00010959,2]
[335347817,1724152238123,-261.03,0.00010959,2]
[335347819,1724152238135,-217.53,0.00010959,2]
[335347821,1724152238145,-181.27,0.00010959,2]
[335347823,1724152238155,-151.06,0.00010959,2]
[335347826,1724152238168,-852.0,0.00011532,2]
[335347828,1724152238179,-20524.92532407,0.00011842,2]
[335347830,1724152238191,-34420.1592205,0.000119,2]
[335347832,1724152238204,-9660.2899886,0.00011999,2]
[335347835,1724152238215,-8845.25511796,0.00011999,2]
[335347837,1724152238228,-305.18847228,0.0001202,2]
[335347839,1724152238242,-1438.50093818,0.00012516,2]
[335347842,1724152238254,-1765.95777024,0.00012551,2]
[335347844,1724152238267,-932.740471,0.00012782,2]
[335347846,1724152238286,-817.42780859,0.00012782,2]
[335347849,1724152238299,-898.81779354,0.00012898,2]
[335347851,1724152238313,-1788.192574,0.000129,2]
[335347853,1724152238324,-154.8064888,0.00012934,2]
[335347856,1724152238336,-163.90244415,0.00012934,2]
[335347858,1724152238348,-157.01479275,0.00012934,2]
[335347860,1724152238359,-34420.1592205,0.00012961,2]
[335347862,1724152238370,-322.58773926,0.00012971,2]
[335347865,1724152238384,-159.95730847,0.00012971,2]
[335347867,1724152238397,-305.00248452,0.00012971,2]
[335347869,1724152238411,-180.36417415,0.00012985,2]
[335347872,1724152238424,-295.70752446,0.00012985,2]
[335347874,1724152238435,-295.23903243,0.00012985,2]
[335347876,1724152238446,-219.90666814,0.00012985,2]
[335347878,1724152238459,-220.70237574,0.00012989,2]
[335347881,1724152238470,-154.89913263,0.00012989,2]
[335347883,1724152238482,-156.87056893,0.00012989,2]
[335347885,1724152238496,-154.77557542,0.00012989,2]
[335347888,1724152238509,-154.77557542,0.00012989,2]
[335347890,1724152238521,-260.02260266,0.00012989,2]
[335347892,1724152238533,-155.00722846,0.00012989,2]
[335347894,1724152238544,-155.12958985,0.00012989,2]
[335347897,1724152238556,-199.55726115,0.00012991,2]
[335347899,1724152238568,-521.35824671,0.00012999,2]
[335347901,1724152238580,-305.18847228,0.00013097,2]
[335347903,1724152238591,-205.23977852,0.00013333,2]
[335347906,1724152238607,-1788.19257398,0.00013471,2]
[335347908,1724152238620,-154.77557542,0.00013477,2]
[335347910,1724152238632,-495.19490276,0.00013596,2]
[335347913,1724152238645,-34420.1592205,0.00013689,2]
[335347915,1724152238657,-200.0,0.00013698,2]
[335347917,1724152238669,-500.0,0.00013698,2]
[335347920,1724152238683,-500.0,0.00013698,2]
[335347922,1724152238697,-356.22180046,0.00013698,2]
[335347924,1724152238708,-389.3065637,0.00013698,2]
[335347926,1724152238719,-500.0,0.00013698,2]
[335347929,1724152238732,-300.99537411,0.00013698,2]
[335347931,1724152238744,-500.0,0.00013698,2]
[335347933,1724152238756,-324.67981406,0.00013698,2]
[335347936,1724152238767,-500.0,0.00013698,2]
[335347938,1724152238779,-500.0,0.00013698,2]
[335347940,1724152238791,-500.0,0.00013698,2]
[335347942,1724152238803,-491.05166687,0.00013698,2]
[335347945,1724152238814,-500.0,0.00013698,2]
[335347947,1724152238825,-500.0,0.00013698,2]
[335347949,1724152238837,-500.0,0.00013698,2]
[335347951,1724152238849,-500.0,0.00013698,2]
[335347953,1724152238860,-500.0,0.00013698,2]
[335347956,1724152238871,-500.0,0.00013698,2]
[335347958,1724152238884,-500.0,0.00013698,2]
[335347960,1724152238895,-500.0,0.00013699,2]
[335347963,1724152238909,-500.0,0.00013699,2]
[335347965,1724152238920,-189.32410313,0.00013699,2]
[335347967,1724152238930,-500.0,0.00013699,2]
[335347969,1724152238942,-500.0,0.00013699,2]
[335347971,1724152238954,-500.0,0.00013699,2]
[335347973,1724152238965,-500.0,0.00013699,2]
[335347976,1724152238976,-500.0,0.00013699,2]
[335347978,1724152238988,-500.0,0.00013699,2]
[335347980,1724152238999,-500.0,0.00013699,2]
[335347982,1724152239010,-500.0,0.00013699,2]
[335347984,1724152239021,-500.0,0.00013699,2]
[335347986,1724152239033,-500.0,0.00013699,2]
[335347988,1724152239045,-194.83065114,0.00013699,2]
[335347990,1724152239058,-500.0,0.00013699,2]
[335347992,1724152239070,-500.0,0.00013699,2]
[335347994,1724152239083,-500.0,0.00013699,2]
[335347996,1724152239095,-651.87300523,0.00013699,2]
[335347998,1724152239106,-500.0,0.00013699,2]
[335348000,1724152239120,-500.0,0.00013699,2]
[335348002,1724152239132,-500.0,0.00013699,2]
[335348004,1724152239144,-500.0,0.00013699,2]
[335348006,1724152239157,-500.0,0.00013699,2]
[335348008,1724152239169,-500.0,0.00013699,2]
[335348011,1724152239182,-238.39254052,0.00013699,2]
[335348013,1724152239193,-500.0,0.00013699,2]
[335348015,1724152239204,-238.39254052,0.00013699,2]
[335348017,1724152239217,-500.0,0.00013699,2]
[335348019,1724152239229,-238.39254052,0.00013699,2]
[335348021,1724152239242,-500.0,0.00013699,2]
[335348023,1724152239252,-238.39254052,0.00013699,2]
[335348025,1724152239264,-535.4697215,0.00013699,2]
[335348027,1724152239276,-535.4697215,0.00013699,2]
[335348029,1724152239291,-535.4697215,0.00013699,2]
[335348030,1724152239302,-535.4697215,0.00013699,2]
[335348031,1724152239315,-535.4697215,0.00013699,2]
[335348032,1724152239327,-535.4697215,0.00013699,2]
[335348033,1724152239339,-535.4697215,0.00013699,2]
[335348034,1724152239350,-535.4697215,0.00013699,2]
[335348035,1724152239363,-535.4697215,0.00013699,2]
[335348036,1724152239374,-535.4697215,0.00013699,2]
[335348037,1724152239386,-535.4697215,0.00013699,2]
[335348038,1724152239397,-535.4697215,0.00013699,2]
[335348039,1724152239416,-500.0,0.00013699,2]
[335348040,1724152239427,-570.939443,0.00013699,2]
[335348041,1724152239440,-535.4697215,0.00013699,2]
[335348042,1724152239453,-535.4697215,0.00013699,2]
[335348043,1724152239465,-535.4697215,0.00013699,2]
[335348044,1724152239478,-535.4697215,0.00013699,2]
[335348045,1724152239489,-535.4697215,0.00013699,2]
[335348046,1724152239500,-535.4697215,0.00013699,2]
[335348047,1724152239510,-535.4697215,0.00013699,2]
[335348048,1724152239520,-535.4697215,0.00013699,2]
[335348049,1724152239530,-535.4697215,0.00013699,2]
[335348050,1724152239540,-535.4697215,0.00013699,2]
[335348051,1724152239550,-535.4697215,0.00013699,2]
[335348052,1724152239560,-535.4697215,0.00013699,2]
[335348053,1724152239570,-535.4697215,0.00013699,2]
[335348054,1724152239580,-535.4697215,0.00013699,2]
[335348058,1724152239590,-535.4697215,0.00013699,2]
[335348059,1724152239806,-535.4697215,0.00013699,2]
[335348060,1724152239816,-535.4697215,0.00013699,2]
[335348061,1724152239828,-535.4697215,0.00013699,2]
[335348062,1724152239839,-500.0,0.00013699,2]
[335348063,1724152239848,-570.939443,0.00013699,2]
[335348064,1724152239861,-500.0,0.00013699,2]
[335348065,1724152239872,-570.939443,0.00013699,2]
[335348067,1724152239882,-500.0,0.00013699,2]
[335348068,1724152239893,-570.939443,0.00013699,2]
[335348069,1724152239903,-500.0,0.00013699,2]
[335348070,1724152239913,-570.939443,0.00013699,2]
[335348071,1724152239924,-535.4697215,0.00013699,2]
[335348072,1724152239935,-535.4697215,0.00013699,2]
[335348073,1724152239946,-535.4697215,0.00013699,2]
[335348074,1724152239956,-535.4697215,0.00013699,2]
[335348075,1724152239967,-535.4697215,0.00013699,2]
[335348076,1724152239977,-684.51391799,0.00013699,2]
[335348077,1724152239987,-684.51391799,0.00013699,2]
[335348078,1724152239999,-684.51391799,0.00013699,2]
[335348079,1724152240010,-684.51391799,0.00013699,2]
[335348080,1724152240019,-684.51391799,0.00013699,2]
[335348081,1724152240029,-684.51391799,0.00013699,2]
[335348082,1724152240041,-684.51391799,0.00013699,2]
[335348083,1724152240052,-684.51391799,0.00013699,2]
[335348084,1724152240061,-684.51391799,0.00013699,2]
[335348085,1724152240070,-684.51391799,0.00013699,2]
[335348087,1724152240080,-684.51391799,0.00013699,2]
[335348088,1724152240090,-684.51391799,0.00013699,2]
[335348089,1724152240099,-684.51391799,0.00013699,2]
[335348091,1724152240109,-684.51391799,0.00013699,2]
[335348093,1724152240119,-684.51391799,0.00013699,2]
[335348094,1724152240129,-684.51391799,0.00013699,2]
[335348095,1724152240141,-684.51391799,0.00013699,2]
[335348096,1724152240150,-684.51391799,0.00013699,2]
[335348097,1724152240160,-684.51391799,0.00013699,2]
[335348098,1724152240169,-684.51391799,0.00013699,2]
[335348099,1724152240179,-155.410851,0.000137,2]
[335348100,1724152240189,-154.79103211,0.00013792,2]
[335348101,1724152240200,-150.112233,0.00014,2]
[335348102,1724152240212,-305.18847228,0.00014174,2]
[335348103,1724152240225,-697.990225,0.00014247,2]
[335348104,1724152240236,-160.030077,0.00014247,2]
[335348105,1724152240246,-150.112233,0.000144,2]
[335348106,1724152240257,-150.112233,0.000147,2]
[335348107,1724152240267,-237.35486148,0.00015,2]
[335348108,1724152240277,-150.603,0.00015043,2]
[335348109,1724152240291,-521.0,0.00015043,2]
[335348110,1724152240302,-1415.0,0.00015097,2]
[335348111,1724152240313,-150.112233,0.000151,2]
[335348112,1724152240324,-305.18847228,0.00015251,2]
[335348113,1724152240334,-150.112233,0.000154,2]
[335348114,1724152240345,-150.112233,0.000158,2]
[335348115,1724152240356,-263.082141,0.0001589,2]
[335348116,1724152240365,-150.112233,0.000161,2]
[335348117,1724152240375,-999.947652,0.0001618,7]
[335348118,1724152240385,-305.18847228,0.00016328,2]
[335348119,1724152240399,-976.98437955,0.00016338,2]
[335348120,1724152240410,-5329.36596513,0.00016391,2]
[335348121,1724152240421,-603.0,0.000164,2]
[335348122,1724152240431,-377.8277,0.000164,2]
[335348123,1724152240442,-172100.796103,0.00016418,2]
[335348124,1724152240452,-151.0,0.00016428,2]
[335348125,1724152240463,-151.0,0.00016428,2]
[335348126,1724152240474,-151.0,0.00016428,2]
[335348127,1724152240485,-151.0,0.00016428,2]
[335348128,1724152240495,-151.0,0.00016428,2]
[335348129,1724152240505,-151.0,0.00016428,2]
[335348130,1724152240516,-151.0,0.00016428,2]
[335348131,1724152240526,-616.98870664,0.00016437,2]
[335348132,1724152240537,-118356.58970897,0.00016438,5]
[335348133,1724152240552,-19949.15480788,0.00016438,5]
[335348134,1724152240756,-2282.67176676,8.861e-05,3]
[335348135,1724152240766,-26604.28466246,0.00016438,5]
[335348145,1724152242911,-83.77346259,0.00012991,2]
[335348196,1724152692025,502.32,0.00021,120]
[335348210,1724153296003,1341.6134714,7.028e-05,2]
[335348211,1724153333702,3620.21503602,7.028e-05,2]
[335348212,1724153334414,245.39678061,7.028e-05,2]
[335348213,1724153336879,19508.23520775,7.028e-05,2]
[335348214,1724153338162,405.40975806,7.028e-05,2]
[335348215,1724153341308,218.74217155,7.028e-05,2]
[335348216,1724153341969,235.77324264,7.028e-05,2]
[335348217,1724153343159,939.08236877,7.028e-05,2]
[335348218,1724153344720,3224.25515966,7.028e-05,2]
[335348219,1724153344900,2112.50283852,7.028e-05,2]
[335348220,1724153353113,-250.0,7.734e-05,2]
[335348221,1724153353136,-1640.24017386,7.754e-05,2]
[335348222,1724153353159,-250.0,7.755e-05,2]
[335348223,1724153353181,-242.56510658,7.776e-05,2]
[335348367,1724153373811,320.884366,7.026e-05,2]
[335348368,1724153374028,320.884366,7.028e-05,2]
[335348369,1724153374243,320.884366,7.029e-05,2]
[335348370,1724153374453,320.884366,7.031e-05,2]
[335348372,1724153374665,320.884366,7.033e-05,2]
[335348373,1724153374961,320.884366,7.035e-05,2]
[335348374,1724153375192,320.884366,7.037e-05,2]
[335348375,1724153375400,320.884366,7.039e-05,2]
[335348376,1724153375789,320.884366,7.04e-05,2]
[335348377,1724153376242,320.884366,7.042e-05,2]
[335348378,1724153376455,320.884366,7.044e-05,2]
[335348379,1724153376697,320.884366,7.046e-05,2]
[335348380,1724153376899,320.884366,7.048e-05,2]
[335348381,1724153377097,320.884366,7.05e-05,2]
[335348382,1724153377329,320.884366,7.051e-05,2]
[335348383,1724153377534,320.884366,7.053e-05,2]
[335348384,1724153377757,320.884366,7.055e-05,2]
[335348385,1724153377993,320.884366,7.057e-05,2]
[335348386,1724153378216,320.884366,7.059e-05,2]
[335348387,1724153378417,320.884366,7.061e-05,2]
[335348405,1724153400001,16320.59442379,7.028e-05,2]
[335348419,1724153427596,4458.7322025,7.023e-05,2]
[335348436,1724153431894,2515.78122782,7.028e-05,2]
[335348445,1724153431976,-273.37336231,7.698e-05,2]
[335348447,1724153431987,-7.43489342,7.776e-05,2]
[335348448,1724153431997,-12743.30970849,7.776e-05,2]
[335348455,1724153435707,3619.64686258,7.028e-05,2]
[335348491,1724153438060,-3577.2847153,7.776e-05,2]
[335348492,1724153438070,-226.78719103,7.776e-05,2]
[335348494,1724153438079,-250.0,7.797e-05,2]
[335348495,1724153438088,-250.0,7.818e-05,2]
[335348497,1724153438098,-250.0,7.84e-05,2]
[335348499,1724153438108,-250.0,7.861e-05,2]
[335348501,1724153438117,-250.0,7.882e-05,2]
[335348502,1724153438127,-250.0,7.903e-05,2]
[335348504,1724153438136,-898.81779354,7.911e-05,2]
[335348506,1724153438146,-207.20138591,7.911e-05,2]
[335348507,1724153438156,-154.76012181,7.911e-05,2]
[335348508,1724153438165,-156.87056893,7.911e-05,2]
[335348509,1724153438175,-250.0,7.924e-05,2]
[335348510,1724153438184,-250.0,7.946e-05,2]
[335348511,1724153438194,-250.0,7.967e-05,2]
[335348512,1724153438203,-250.0,7.988e-05,2]
[335348513,1724153438212,-250.0,8.009e-05,2]
[335348514,1724153438222,-156.07985241,8.019e-05,2]
[335348515,1724153438232,-250.0,8.03e-05,2]
[335348516,1724153438242,-250.0,8.052e-05,2]
[335348517,1724153438252,-250.0,8.073e-05,2]
[335348518,1724153438261,-300.0,8.093e-05,2]
[335348519,1724153438270,-300.0,8.093e-05,2]
[335348520,1724153438280,-250.0,8.094e-05,2]
[335348521,1724153438290,-250.0,8.115e-05,2]
[335348522,1724153438302,-250.0,8.136e-05,2]
[335348523,1724153438314,-218.51615349,8.519e-05,2]
[335348524,1724153438325,-218.08775075,8.519e-05,2]
[335348525,1724153438336,-47523.71020324,8.521e-05,2]
[335348526,1724153438345,-31884.11967215,8.521e-05,2]
[335348527,1724153438500,-8841.78719878,8.521e-05,2]
[335348528,1724153438513,-420.0,8.902e-05,2]
[335348529,1724153438525,-420.0,8.902e-05,2]
[335348530,1724153438534,-19408.15506004,8.902e-05,2]
[335348531,1724153438545,-24900.0,9.662e-05,2]
[335348532,1724153438556,-587.0,9.793e-05,2]
[335348533,1724153438566,-587.0,9.793e-05,2]
[335348534,1724153438577,-19408.15506004,9.923e-05,2]
[335348535,1724153438587,-3135.79886585,0.0001,2]
[335348536,1724153438598,-34539.53864766,0.0001,2]
[335348537,1724153438609,-200.22314422,0.00010541,2]
[335348538,1724153438620,-200.0,0.00010541,2]
[335348539,1724153438631,-823.0,0.00010772,2]
[335348540,1724153438643,-823.0,0.00010772,2]
[335348541,1724153438652,-19408.15506004,0.00010844,2]
[335348542,1724153438662,-154.76012181,0.00010958,2]
[335348543,1724153438672,-154.76012181,0.00010958,2]
[335348544,1724153438681,-918.7595475,0.00010959,2]
[335348545,1724153438690,-2315.61,0.00010959,2]
[335348546,1724153438702,-1929.67,0.00010959,2]
[335348547,1724153438715,-1608.06,0.00010959,2]
[335348548,1724153438725,-1161.43125652,0.00011,2]
[335348549,1724153438736,-1152.0,0.00011849,2]
[335348550,1724153438746,-1152.0,0.00011849,2]
[335348551,1724153438757,-19408.15506004,0.00011864,2]
[335348552,1724153438768,-200.0,0.00011873,2]
[335348553,1724153438778,-200.0,0.00011873,2]
[335348554,1724153438789,-183152.186175,0.000119,2]
[335348555,1724153438801,-400.0,0.00011911,2]
[335348556,1724153438810,-9660.2899886,0.00012356,2]
[335348557,1724153438822,-2128.24653365,0.00012551,2]
[335348558,1724153438832,-2282.67176676,0.00012551,3]
[335348559,1724153438842,-2143.02877073,0.00012629,2]
[335348560,1724153438852,-1766.63770101,0.00012629,2]
[335348561,1724153438864,-91576.0930875,0.00012666,2]
[335348562,1724153438875,-19408.15506004,0.00012885,2]
[335348563,1724153438886,-27623.46856315,0.000129,2]
[335348564,1724153438896,-7014.13255051,0.00012971,2]
[335348565,1724153438907,-526.51126763,0.00012971,2]
[335348566,1724153438917,-154.76012181,0.00012971,2]
[335348567,1724153438927,-2166.4854483,0.00012985,2]
[335348568,1724153438938,-521.35824671,0.00012985,2]
[335348569,1724153438949,-1613.61724275,0.00012989,2]
[335348570,1724153438958,-1613.61724275,0.00012989,2]
[335348571,1724153438969,-1646.80421124,0.00012999,2]
[335348572,1724153438980,-3092.99892406,0.00012999,2]
[335348573,1724153438992,-1500.0,0.00012999,2]
[335348574,1724153439002,-918.24417892,0.00013,2]
[335348575,1724153439015,-190.09307092,0.00013025,2]
[335348576,1724153439027,-160.46171883,0.00013025,2]
[335348577,1724153439039,-154.76012181,0.00013025,2]
[335348578,1724153439049,-154.76012181,0.00013025,2]
[335348579,1724153439059,-320.30409158,0.00013025,2]
[335348580,1724153439069,-154.76012181,0.00013025,2]
[335348581,1724153439078,-1613.0,0.00013034,2]
[335348582,1724153439087,-690.0,0.00013034,2]
[335348583,1724153439097,-2712.87069354,0.0001305,2]
[335348584,1724153439106,-2712.87069354,0.0001305,2]
[335348585,1724153439116,-1500.0,0.00013051,2]
[335348586,1724153439127,-202.58321353,0.00013051,2]
[335348587,1724153439136,-240.23526797,0.00013051,2]
[335348588,1724153439146,-206.59847366,0.00013051,2]
[335348589,1724153439157,-154.76012181,0.00013051,2]
[335348590,1724153439167,-197.50730199,0.00013051,2]
[335348591,1724153439179,-665.53459983,0.00013051,2]
[335348592,1724153439188,-162.66594384,0.00013051,2]
[335348593,1724153439198,-154.76012181,0.00013051,2]
[335348594,1724153439207,-199.55726115,0.00013051,2]
[335348595,1724153439216,-196.83090407,0.00013051,2]
[335348596,1724153439227,-176.12678073,0.00013051,2]
[335348597,1724153439237,-154.76012181,0.00013051,2]
[335348598,1724153439248,-269.30671021,0.00013051,2]
[335348599,1724153439259,-91576.0930875,0.00013117,2]
[335348600,1724153439278,-400.0,0.00013242,2]
[335348601,1724153439288,-400.0,0.00013242,2]
[335348602,1724153439299,-601.94985179,0.00013333,2]
[335348603,1724153439310,-404.47284307,0.00013333,2]
[335348604,1724153439321,-301.56944091,0.00013333,2]
[335348605,1724153439333,-154.76012181,0.00013333,2]
[335348606,1724153439344,-288.30937481,0.00013333,2]
[335348607,1724153439355,-154.76012181,0.00013333,2]
[335348608,1724153439365,-197.33180704,0.00013333,2]
[335348609,1724153439374,-157.11235205,0.00013333,2]
[335348610,1724153439384,-544.06785329,0.00013333,2]
[335348611,1724153439394,-862.53940611,0.00013333,2]
[335348612,1724153439404,-154.76012181,0.00013333,2]
[335348613,1724153439415,-413.70707529,0.00013333,2]
[335348614,1724153439425,-728.8710597,0.00013333,2]
[335348615,1724153439436,-154.76012181,0.00013333,2]
[335348616,1724153439447,-174.85504165,0.00013477,2]
[335348617,1724153439460,-569.6147727,0.00013477,2]
[335348618,1724153439471,-493.36312925,0.00013477,2]
[335348619,1724153439481,-154.76012181,0.00013477,2]
[335348620,1724153439491,-154.76012181,0.00013477,2]
[335348621,1724153439500,-154.76012181,0.00013477,2]
[335348622,1724153439510,-688.74575077,0.00013477,2]
[335348623,1724153439520,-210.26167047,0.00013477,2]
[335348624,1724153439529,-155.23257901,0.00013477,2]
[335348625,1724153439539,-180.81152876,0.00013477,2]
[335348626,1724153439549,-305.00248452,0.00013477,2]
[335348627,1724153439559,-422.36012849,0.00013477,2]
[335348628,1724153439568,-180.81152876,0.00013477,2]
[335348629,1724153439579,-154.76012181,0.00013477,2]
[335348630,1724153439589,-342.6945234,0.00013477,2]
[335348631,1724153439601,-154.76012181,0.00013477,2]
[335348632,1724153439613,-154.76012181,0.00013496,2]
[335348633,1724153439623,-520.67910379,0.00013496,2]
[335348634,1724153439635,-810.66321171,0.00013496,2]
[335348635,1724153439646,-495.19490276,0.00013496,2]
[335348636,1724153439661,-158.1221147,0.00013496,2]
[335348637,1724153439671,-154.76012181,0.00013496,2]
[335348639,1724153439682,-817.60790766,0.00013496,2]
[335348641,1724153439693,-154.76012181,0.00013496,2]
[335348643,1724153439706,-154.76012181,0.00013497,2]
[335348645,1724153439719,-154.76012181,0.00013497,2]
[335348647,1724153439729,-91576.0930875,0.00013569,2]
[335348649,1724153439739,-976.98437955,0.00013579,2]
[335348651,1724153439751,-154.76012181,0.00013596,2]
[335348652,1724153439762,-154.76012181,0.00013596,2]
[335348653,1724153439772,-210.30757441,0.00013596,2]
[335348654,1724153439787,-534.91146023,0.00013597,2]
[335348655,1724153439799,-534.91146023,0.00013597,2]
[335348656,1724153439810,-182.97463677,0.00013599,2]
[335348657,1724153439821,-269.93873618,0.00013599,7]
[335348658,1724153439832,-199.13403479,0.00013599,2]
[335348659,1724153439843,-192.5246732,0.00013599,2]
[335348661,1724153439854,-780.13119624,0.00013599,2]
[335348663,1724153439865,-306.73137352,0.00013599,2]
[335348664,1724153439875,-780.13119624,0.00013599,2]
[335348665,1724153439886,-191.89440015,0.00013599,2]
[335348666,1724153439896,-154.76012181,0.00013599,2]
[335348667,1724153439907,-154.76012181,0.00013599,2]
[335348668,1724153439918,-200.0,0.00013673,2]
[335348669,1724153439929,-200.0,0.00013673,2]
[335348670,1724153439940,-262.836661,0.00013678,2]
[335348671,1724153439951,-262.836661,0.00013678,2]
[335348672,1724153439961,-200.0,0.00013688,2]
[335348673,1724153439972,-154.84370907,0.00013688,2]
[335348674,1724153439985,-155.68909977,0.00013688,2]
[335348675,1724153439996,-154.76012181,0.00013688,2]
[335348677,1724153440009,-217.25387931,0.00013688,2]
[335348679,1724153440020,-155.29015012,0.00013688,2]
[335348681,1724153440029,-154.87224043,0.00013688,2]
[335348683,1724153440040,-600.88577429,0.00013688,2]
[335348685,1724153440050,-154.76012181,0.00013688,4]
[335348687,1724153440062,-154.76012181,0.00013697,2]
[335348689,1724153440072,-160.87448942,0.00013697,2]
[335348691,1724153440083,-161.55114082,0.00013697,2]
[335348693,1724153440095,-500.0,0.00013698,2]
[335348695,1724153440106,-500.0,0.00013698,2]
[335348697,1724153440117,-356.22180046,0.00013698,2]
[335348699,1724153440127,-500.0,0.00013698,2]
[335348701,1724153440138,-200.0,0.00013698,2]
[335348703,1724153440148,-500.0,0.00013698,2]
[335348705,1724153440158,-200.37590733,0.00013698,2]
[335348707,1724153440167,-500.0,0.00013698,2]
[335348709,1724153440177,-500.0,0.00013698,2]
[335348711,1724153440186,-200.59230123,0.00013698,2]
[335348713,1724153440196,-500.0,0.00013698,2]
[335348715,1724153440206,-366.25195477,0.00013698,2]
[335348717,1724153440218,-500.0,0.00013698,2]
[335348719,1724153440228,-500.0,0.00013698,2]
[335348721,1724153440239,-500.0,0.00013698,2]
[335348723,1724153440250,-414.30925146,0.00013698,2]
[335348725,1724153440261,-500.0,0.00013698,2]
[335348727,1724153440271,-500.0,0.00013698,2]
[335348729,1724153440281,-500.0,0.00013698,2]
[335348731,1724153440291,-500.0,0.00013698,2]
[335348733,1724153440300,-500.0,0.00013698,2]
[335348735,1724153440312,-500.0,0.00013698,2]
[335348737,1724153440322,-500.0,0.00013698,2]
[335348739,1724153440332,-500.0,0.00013698,2]
[335348741,1724153440341,-500.0,0.00013698,2]
[335348744,1724153440351,-500.0,0.00013698,2]
[335348747,1724153440360,-500.0,0.00013698,2]
[335348750,1724153440370,-500.0,0.00013698,2]
[335348753,1724153440379,-500.0,0.00013698,2]
[335348756,1724153440389,-500.0,0.00013698,2]
[335348759,1724153440399,-500.0,0.00013698,2]
[335348761,1724153440408,-310.20393092,0.00013698,2]
[335348764,1724153440417,-500.0,0.00013698,2]
[335348767,1724153440426,-500.0,0.00013698,2]
[335348769,1724153440435,-500.0,0.00013698,2]
[335348771,1724153440445,-180.34765538,0.00013698,2]
[335348774,1724153440454,-195.63337011,0.00013698,2]
[335348776,1724153440464,-309.45846005,0.00013698,2]
[335348778,1724153440475,-2727.9024512,0.00013699,2]
[335348780,1724153440485,-1943.971076,0.00013699,2]
[335348782,1724153440494,-3000.0,0.00013699,2]
[335348784,1724153440504,-151.0,0.00013699,2]
[335348785,1724153440514,-151.0,0.00013699,2]
[335348787,1724153440524,-159.211296,0.00013699,2]
[335348789,1724153440533,-159.211296,0.00013699,2]
[335348791,1724153440542,-37194.1377701,0.00013699,2]
[335348793,1724153440551,-151.0,0.00013699,2]
[335348795,1724153440561,-151.0,0.00013699,2]
[335348797,1724153440572,-151.0,0.00013699,2]
[335348799,1724153440584,-151.0,0.00013699,2]
[335348801,1724153440595,-151.0,0.00013699,2]
[335348803,1724153440605,-151.0,0.00013699,2]
[335348805,1724153440615,-155.104913,0.00013699,2]
[335348807,1724153440626,-151.0,0.00013699,2]
[335348809,1724153440635,-6599.967,0.00013699,2]
[335348811,1724153440645,-6599.967,0.00013699,2]